[Event "Open Gent FIDE-rated 2023"]
[Site "Gent, Belgium"]
[Date "2023.07.17"]
[Round "5.1"]
[White "Goudriaan, Etienne"]
[Black "Dreelinck, Adriaan"]
[Result "1/2-1/2"]
[TimeControl "90'+30''"]
[WhiteTitle "IM"]
[WhiteElo "2322"]
[BlackElo "2214"]

1. Nf3 {[%clk 01:30:57]} {[%emt 00:00:03]} d5 {[%clk 01:30:51]} {[%emt
00:00:09]} 2. g3 {[%clk 01:31:21]} {[%emt 00:00:04]} b6 {[%clk 01:30:41]}
{[%emt 00:00:44]} 3. Bg2 {[%clk 01:30:04]} {[%emt 00:01:46]} Bb7 {[%clk
01:31:03]} {[%emt 00:00:08]} 4. d4 {[%clk 01:30:21]} {[%emt 00:00:13]} e6
{[%clk 01:31:04]} {[%emt 00:00:29]} 5. O-O {[%clk 01:30:42]} {[%emt 00:00:08]}
Nd7 {[%clk 01:31:10]} {[%emt 00:00:25]} 6. c4 {[%clk 01:27:23]} {[%emt
00:03:50]} dxc4 {[%clk 01:31:18]} {[%emt 00:00:22]} 7. a4 {[%clk 01:25:07]}
{[%emt 00:02:46]} c5 {[%clk 01:23:22]} {[%emt 00:08:25]} 8. Nbd2 {[%clk
01:24:39]} {[%emt 00:00:59]} Ngf6 {[%clk 01:07:56]} {[%emt 00:15:56]} 9. Nxc4
{[%clk 01:24:27]} {[%emt 00:00:42]} cxd4 {[%clk 01:04:56]} {[%emt 00:03:31]} 10.
Qxd4 {[%clk 01:20:12]} {[%emt 00:04:44]} Nc5 {[%clk 01:01:47]} {[%emt
00:03:39]} 11. Bf4 {[%clk 01:19:05]} {[%emt 00:01:37]} Nb3 {[%clk 00:52:39]}
{[%emt 00:09:38]} 12. Qxd8+ {[%clk 01:19:12]} {[%emt 00:00:23]} Rxd8 {[%clk
00:52:59]} {[%emt 00:00:10]} 13. Rad1 {[%clk 01:19:37]} {[%emt 00:00:04]} Nd5
{[%clk 00:45:21]} {[%emt 00:08:08]} 14. Ne3 {[%clk 00:56:39]} {[%emt 00:23:28]}
Nxf4 {[%clk 00:41:23]} {[%emt 00:04:28]} 15. Rxd8+ {[%clk 00:56:52]} {[%emt
00:00:17]} Kxd8 {[%clk 00:41:46]} {[%emt 00:00:07]} 16. gxf4 {[%clk 00:57:17]}
{[%emt 00:00:04]} f6 {[%clk 00:34:44]} {[%emt 00:07:33]} 17. Rd1+ {[%clk
00:56:53]} {[%emt 00:00:53]} Kc7 {[%clk 00:31:03]} {[%emt 00:04:11]} 18. Bh3
{[%clk 00:55:46]} {[%emt 00:01:37]} Bxf3 {[%clk 00:27:27]} {[%emt 00:04:06]} 19.
exf3 {[%clk 00:56:00]} {[%emt 00:00:16]} f5 {[%clk 00:25:28]} {[%emt 00:02:30]}
20. Bf1 {[%clk 00:55:32]} {[%emt 00:00:57]} Bc5 {[%clk 00:24:16]} {[%emt
00:01:42]} 21. Bc4 {[%clk 00:53:23]} {[%emt 00:02:39]} Nd4 {[%clk 00:16:05]}
{[%emt 00:08:42]} 22. b4 {[%clk 00:51:51]} {[%emt 00:02:02]} Nxf3+ {[%clk
00:16:00]} {[%emt 00:00:34]} 23. Kg2 {[%clk 00:52:16]} {[%emt 00:00:05]} Nh4+
{[%clk 00:16:05]} {[%emt 00:00:25]} 24. Kg3 {[%clk 00:52:36]} {[%emt 00:00:09]}
Be7 {[%clk 00:13:03]} {[%emt 00:03:33]} 25. Bxe6 {[%clk 00:52:45]} {[%emt
00:00:21]} Rd8 {[%clk 00:13:08]} {[%emt 00:00:25]} 26. Nd5+ {[%clk 00:51:56]}
{[%emt 00:01:19]} Kb8 {[%clk 00:12:11]} {[%emt 00:01:26]} 27. Nxe7 {[%clk
00:49:19]} {[%emt 00:03:06]} Rxd1 {[%clk 00:12:29]} {[%emt 00:00:13]} 28. Kxh4
{[%clk 00:49:45]} {[%emt 00:00:04]} Re1 {[%clk 00:11:57]} {[%emt 00:01:02]} 29.
Nc6+ {[%clk 00:50:06]} {[%emt 00:00:09]} Kc7 {[%clk 00:12:19]} {[%emt
00:00:09]} 30. Bd5 {[%clk 00:49:51]} {[%emt 00:00:44]} Rg1 {[%clk 00:10:57]}
{[%emt 00:01:52]} 31. Bf3 {[%clk 00:46:12]} {[%emt 00:04:09]} Rf1 {[%clk
00:08:46]} {[%emt 00:02:41]} 32. Nxa7 {[%clk 00:45:03]} {[%emt 00:01:38]} Rxf2
{[%clk 00:09:07]} {[%emt 00:00:09]} 33. Kg3 {[%clk 00:45:26]} {[%emt 00:00:07]}
Ra2 {[%clk 00:06:49]} {[%emt 00:02:48]} 34. Nb5+ {[%clk 00:45:17]} {[%emt
00:00:40]} Kd7 {[%clk 00:07:14]} {[%emt 00:00:05]} 35. Nc3 {[%clk 00:44:29]}
{[%emt 00:01:18]} Ra3 {[%clk 00:06:38]} {[%emt 00:01:06]} 36. Nd5 {[%clk
00:44:53]} {[%emt 00:00:05]} Kc6 {[%clk 00:06:56]} {[%emt 00:00:12]} 37. Ne3+
{[%clk 00:43:06]} {[%emt 00:02:16]} Kc7 {[%clk 00:06:45]} {[%emt 00:00:42]} 38.
Nxf5 {[%clk 00:42:52]} {[%emt 00:00:44]} Rxa4 {[%clk 00:07:08]} {[%emt
00:00:07]} 39. b5 {[%clk 00:43:14]} {[%emt 00:00:08]} g6 {[%clk 00:06:45]}
{[%emt 00:00:53]} 40. Ne3 {[%clk 00:40:35]} {[%emt 00:03:08]} Kd6 {[%clk
00:05:51]} {[%emt 00:01:25]} 41. Ng4 {[%clk 00:40:20]} {[%emt 00:00:45]} Ra3
{[%clk 00:05:32]} {[%emt 00:00:50]} 42. Kf2 {[%clk 00:37:50]} {[%emt 00:02:59]}
Ra4 {[%clk 00:05:29]} {[%emt 00:00:33]} 43. Kg3 {[%clk 00:38:11]} {[%emt
00:00:09]} Ra3 {[%clk 00:05:43]} {[%emt 00:00:16]} 44. Kg2 {[%clk 00:34:08]}
{[%emt 00:04:32]} Ra4 {[%clk 00:05:45]} {[%emt 00:00:28]} 45. Nf6 {[%clk
00:33:47]} {[%emt 00:00:51]} Rxf4 {[%clk 00:05:20]} {[%emt 00:00:55]} 46. Nxh7
{[%clk 00:34:12]} {[%emt 00:00:05]} Ke7 {[%clk 00:03:09]} {[%emt 00:02:41]} 47.
Kg3 {[%clk 00:29:53]} {[%emt 00:04:49]} Rf7 {[%clk 00:03:02]} {[%emt 00:00:37]}
48. Ng5 {[%clk 00:29:13]} {[%emt 00:01:10]} Rf5 {[%clk 00:03:23]} {[%emt
00:00:09]} 49. h4 {[%clk 00:29:35]} {[%emt 00:00:08]} Rxb5 {[%clk 00:03:36]}
{[%emt 00:00:18]} 50. Be4 {[%clk 00:29:30]} {[%emt 00:00:35]} Kf6 {[%clk
00:03:08]} {[%emt 00:00:58]} 51. Kf4 {[%clk 00:29:38]} {[%emt 00:00:21]} Ra5
{[%clk 00:02:59]} {[%emt 00:00:39]} 52. Nf3 {[%clk 00:28:22]} {[%emt 00:01:46]}
Rh5 {[%clk 00:03:09]} {[%emt 00:00:20]} 53. Ke3 {[%clk 00:27:35]} {[%emt
00:01:17]} g5 {[%clk 00:01:56]} {[%emt 00:01:42]} 54. hxg5+ {[%clk 00:27:38]}
{[%emt 00:00:27]} Rxg5 {[%clk 00:02:20]} {[%emt 00:00:07]} 55. Nxg5 {[%clk
00:27:58]} {[%emt 00:00:09]} Kxg5 {[%clk 00:02:44]} {[%emt 00:00:06]} 1/2-1/2

[Event "Open Gent FIDE-rated 2023"]
[Site "Gent, Belgium"]
[Date "2023.07.17"]
[Round "5.2"]
[White "Dreelinck, Jacob"]
[Black "van Osch, Mees"]
[Result "1/2-1/2"]
[TimeControl "90'+30''"]
[BlackTitle "FM"]
[WhiteElo "2089"]
[BlackElo "2320"]

1. e4 {[%clk 01:30:56]} {[%emt 00:00:03]} e6 {[%clk 01:30:57]} {[%emt
00:00:04]} 2. d4 {[%clk 01:31:22]} {[%emt 00:00:04]} d5 {[%clk 01:31:24]}
{[%emt 00:00:03]} 3. Nd2 {[%clk 01:31:46]} {[%emt 00:00:05]} Be7 {[%clk
01:31:42]} {[%emt 00:00:12]} 4. Ngf3 {[%clk 01:32:10]} {[%emt 00:00:06]} Nf6
{[%clk 01:32:06]} {[%emt 00:00:06]} 5. Bd3 {[%clk 01:32:34]} {[%emt 00:00:05]}
c5 {[%clk 01:32:26]} {[%emt 00:00:11]} 6. exd5 {[%clk 01:32:58]} {[%emt
00:00:07]} Qxd5 {[%clk 01:25:21]} {[%emt 00:07:34]} 7. dxc5 {[%clk 01:32:54]}
{[%emt 00:00:34]} Qxc5 {[%clk 01:25:30]} {[%emt 00:00:21]} 8. O-O {[%clk
01:33:09]} {[%emt 00:00:14]} O-O {[%clk 01:25:52]} {[%emt 00:00:09]} 9. Qe2
{[%clk 01:33:16]} {[%emt 00:00:23]} Nbd7 {[%clk 01:24:40]} {[%emt 00:01:41]} 10.
Ne4 {[%clk 01:30:47]} {[%emt 00:03:00]} Nxe4 {[%clk 01:18:52]} {[%emt
00:06:18]} 11. Qxe4 {[%clk 01:26:33]} {[%emt 00:04:43]} Qh5 {[%clk 01:19:00]}
{[%emt 00:00:22]} 12. Be2 {[%clk 01:06:24]} {[%emt 00:20:40]} Nf6 {[%clk
01:16:05]} {[%emt 00:03:25]} 13. Qe5 {[%clk 01:04:18]} {[%emt 00:02:36]} Qxe5
{[%clk 01:07:58]} {[%emt 00:08:36]} 14. Nxe5 {[%clk 01:04:20]} {[%emt
00:00:29]} Bd6 {[%clk 01:08:23]} {[%emt 00:00:05]} 15. Nc4 {[%clk 01:03:37]}
{[%emt 00:01:12]} Bc7 {[%clk 01:08:46]} {[%emt 00:00:08]} 16. Bf3 {[%clk
01:03:27]} {[%emt 00:00:40]} e5 {[%clk 01:05:16]} {[%emt 00:04:00]} 17. Re1
{[%clk 00:48:41]} {[%emt 00:15:16]} e4 {[%clk 01:03:22]} {[%emt 00:02:23]} 18.
Be2 {[%clk 00:47:06]} {[%emt 00:02:05]} Be6 {[%clk 00:57:09]} {[%emt 00:06:43]}
19. Bd2 {[%clk 00:41:07]} {[%emt 00:06:30]} Rac8 {[%clk 00:56:38]} {[%emt
00:01:01]} 20. h3 {[%clk 00:36:35]} {[%emt 00:05:02]} Bxc4 {[%clk 00:51:00]}
{[%emt 00:06:07]} 21. Bxc4 {[%clk 00:34:32]} {[%emt 00:02:33]} Be5 {[%clk
00:51:21]} {[%emt 00:00:09]} 22. Bb3 {[%clk 00:34:39]} {[%emt 00:00:24]} Bxb2
{[%clk 00:51:36]} {[%emt 00:00:14]} 23. Rad1 {[%clk 00:34:34]} {[%emt
00:00:36]} Bc3 {[%clk 00:50:05]} {[%emt 00:02:00]} 24. Kf1 {[%clk 00:32:57]}
{[%emt 00:02:08]} Bxd2 {[%clk 00:48:51]} {[%emt 00:01:44]} 25. Rxd2 {[%clk
00:33:26]} {[%emt 00:00:02]} Rfd8 {[%clk 00:49:11]} {[%emt 00:00:10]} 26. Red1
{[%clk 00:33:21]} {[%emt 00:00:34]} Rxd2 {[%clk 00:49:36]} {[%emt 00:00:05]} 27.
Rxd2 {[%clk 00:33:48]} {[%emt 00:00:03]} Kf8 {[%clk 00:49:54]} {[%emt
00:00:12]} 28. Ke2 {[%clk 00:32:33]} {[%emt 00:01:45]} Ke7 {[%clk 00:50:13]}
{[%emt 00:00:10]} 29. Rd4 {[%clk 00:32:36]} {[%emt 00:00:28]} Rc5 {[%clk
00:48:31]} {[%emt 00:02:11]} 30. Ke3 {[%clk 00:26:14]} {[%emt 00:06:52]} b5
{[%clk 00:35:19]} {[%emt 00:13:43]} 31. a4 {[%clk 00:26:01]} {[%emt 00:00:43]}
a6 {[%clk 00:29:41]} {[%emt 00:06:08]} 32. Rb4 {[%clk 00:22:33]} {[%emt
00:03:57]} Rxc2 {[%clk 00:14:01]} {[%emt 00:16:10]} 33. axb5 {[%clk 00:21:44]}
{[%emt 00:01:19]} axb5 {[%clk 00:14:10]} {[%emt 00:00:21]} 34. Rxb5 {[%clk
00:21:01]} {[%emt 00:01:14]} Rb2 {[%clk 00:14:35]} {[%emt 00:00:05]} 35. Bc4
{[%clk 00:15:54]} {[%emt 00:05:38]} Rxb5 {[%clk 00:07:20]} {[%emt 00:07:44]} 36.
Bxb5 {[%clk 00:16:22]} {[%emt 00:00:01]} Nd5+ {[%clk 00:07:44]} {[%emt
00:00:06]} 37. Kd4 {[%clk 00:16:44]} {[%emt 00:00:08]} Nc7 {[%clk 00:06:22]}
{[%emt 00:01:52]} 38. Bf1 {[%clk 00:16:19]} {[%emt 00:00:54]} f5 {[%clk
00:06:01]} {[%emt 00:00:52]} 39. Ke5 {[%clk 00:16:37]} {[%emt 00:00:13]} g6
{[%clk 00:06:23]} {[%emt 00:00:07]} 40. g4 {[%clk 00:16:36]} {[%emt 00:00:31]}
fxg4 {[%clk 00:03:46]} {[%emt 00:03:07]} 41. hxg4 {[%clk 00:17:00]} {[%emt
00:00:06]} Ne6 {[%clk 00:04:10]} {[%emt 00:00:06]} 42. Kxe4 {[%clk 00:17:20]}
{[%emt 00:00:10]} g5 {[%clk 00:04:27]} {[%emt 00:00:13]} 43. Kf5 {[%clk
00:17:17]} {[%emt 00:00:33]} h6 {[%clk 00:04:31]} {[%emt 00:00:26]} 44. Kg6
{[%clk 00:16:36]} {[%emt 00:01:11]} Nf4+ {[%clk 00:04:39]} {[%emt 00:00:22]} 45.
Kxh6 {[%clk 00:16:15]} {[%emt 00:00:51]} Kf6 {[%clk 00:05:05]} {[%emt
00:00:04]} 46. Bc4 {[%clk 00:16:13]} {[%emt 00:00:32]} Nh3 {[%clk 00:04:55]}
{[%emt 00:00:40]} 1/2-1/2

[Event "Open Gent FIDE-rated 2023"]
[Site "Gent, Belgium"]
[Date "2023.07.17"]
[Round "5.3"]
[White "De Block, Yordi"]
[Black "Ikonnikov, Vyacheslav"]
[Result "1/2-1/2"]
[TimeControl "90'+30''"]
[BlackTitle "GM"]
[WhiteElo "2082"]
[BlackElo "2467"]

1. d4 {[%clk 01:19:08]} {[%emt 00:11:51]} Nf6 {[%clk 01:29:25]} {[%emt
00:01:35]} 2. Bg5 {[%clk 01:19:12]} {[%emt 00:00:27]} d5 {[%clk 01:29:21]}
{[%emt 00:00:33]} 3. Bxf6 {[%clk 01:19:27]} {[%emt 00:00:15]} exf6 {[%clk
01:29:38]} {[%emt 00:00:14]} 4. e3 {[%clk 01:19:23]} {[%emt 00:00:34]} Bd6
{[%clk 01:29:07]} {[%emt 00:01:01]} 5. c4 {[%clk 01:19:19]} {[%emt 00:00:33]}
dxc4 {[%clk 01:29:04]} {[%emt 00:00:34]} 6. Nc3 {[%clk 01:15:19]} {[%emt
00:04:31]} c6 {[%clk 01:26:12]} {[%emt 00:03:21]} 7. Bxc4 {[%clk 01:14:03]}
{[%emt 00:01:46]} Nd7 {[%clk 01:19:24]} {[%emt 00:07:18]} 8. Nge2 {[%clk
01:13:53]} {[%emt 00:00:39]} f5 {[%clk 01:15:43]} {[%emt 00:04:11]} 9. Qc2
{[%clk 01:08:36]} {[%emt 00:05:47]} Nf6 {[%clk 01:10:00]} {[%emt 00:06:13]} 10.
Rd1 {[%clk 01:05:28]} {[%emt 00:03:38]} O-O {[%clk 01:06:43]} {[%emt 00:03:48]}
11. g3 {[%clk 00:59:12]} {[%emt 00:06:47]} g6 {[%clk 01:03:45]} {[%emt
00:03:28]} 12. Nf4 {[%clk 00:58:13]} {[%emt 00:01:29]} Qe7 {[%clk 00:52:30]}
{[%emt 00:11:44]} 13. Be2 {[%clk 00:54:18]} {[%emt 00:04:25]} h5 {[%clk
00:33:56]} {[%emt 00:19:05]} 14. O-O {[%clk 00:49:14]} {[%emt 00:05:34]} h4
{[%clk 00:33:19]} {[%emt 00:01:07]} 15. Bf3 {[%clk 00:45:00]} {[%emt 00:04:44]}
g5 {[%clk 00:24:42]} {[%emt 00:09:07]} 16. Nfe2 {[%clk 00:43:33]} {[%emt
00:01:56]} hxg3 {[%clk 00:22:52]} {[%emt 00:02:20]} 17. hxg3 {[%clk 00:43:49]}
{[%emt 00:00:14]} Bd7 {[%clk 00:22:13]} {[%emt 00:01:09]} 18. e4 {[%clk
00:41:06]} {[%emt 00:03:13]} fxe4 {[%clk 00:22:34]} {[%emt 00:00:09]} 19. Nxe4
{[%clk 00:41:30]} {[%emt 00:00:06]} Nxe4 {[%clk 00:22:38]} {[%emt 00:00:26]} 20.
Qxe4 {[%clk 00:40:53]} {[%emt 00:01:07]} Qxe4 {[%clk 00:22:36]} {[%emt
00:00:33]} 21. Bxe4 {[%clk 00:41:21]} {[%emt 00:00:01]} Rae8 {[%clk 00:23:00]}
{[%emt 00:00:06]} 22. Nc3 {[%clk 00:41:12]} {[%emt 00:00:39]} Re7 {[%clk
00:21:12]} {[%emt 00:02:18]} 23. d5 {[%clk 00:37:33]} {[%emt 00:04:10]} c5
{[%clk 00:21:20]} {[%emt 00:00:22]} 24. Bd3 {[%clk 00:34:07]} {[%emt 00:03:55]}
Bg4 {[%clk 00:17:29]} {[%emt 00:04:21]} 25. Rde1 {[%clk 00:30:21]} {[%emt
00:04:16]} Rd8 {[%clk 00:17:39]} {[%emt 00:00:19]} 26. Ne4 {[%clk 00:26:19]}
{[%emt 00:04:32]} Bf3 {[%clk 00:11:55]} {[%emt 00:06:15]} 27. Nxg5 {[%clk
00:22:13]} {[%emt 00:04:37]} Bxd5 {[%clk 00:11:34]} {[%emt 00:00:50]} 28. b3
{[%clk 00:21:51]} {[%emt 00:00:52]} Kg7 {[%clk 00:09:00]} {[%emt 00:03:05]} 29.
Be4 {[%clk 00:19:30]} {[%emt 00:02:52]} Bxe4 {[%clk 00:04:09]} {[%emt
00:05:20]} 30. Nxe4 {[%clk 00:19:21]} {[%emt 00:00:39]} Rde8 {[%clk 00:03:20]}
{[%emt 00:01:19]} 31. Nxd6 {[%clk 00:19:43]} {[%emt 00:00:08]} Rxe1 {[%clk
00:03:49]} {[%emt 00:00:02]} 32. Nxe8+ {[%clk 00:20:11]} {[%emt 00:00:02]} Rxe8
{[%clk 00:04:17]} {[%emt 00:00:01]} 33. Rd1 {[%clk 00:19:21]} {[%emt 00:01:20]}
Kf6 {[%clk 00:03:50]} {[%emt 00:00:57]} 34. Kg2 {[%clk 00:18:25]} {[%emt
00:01:25]} Re4 {[%clk 00:03:05]} {[%emt 00:01:15]} 35. Kf3 {[%clk 00:13:54]}
{[%emt 00:05:02]} Rb4 {[%clk 00:03:12]} {[%emt 00:00:21]} 36. Rc1 {[%clk
00:13:10]} {[%emt 00:01:16]} b6 {[%clk 00:02:59]} {[%emt 00:00:43]} 37. Rc4
{[%clk 00:13:11]} {[%emt 00:00:29]} a5 {[%clk 00:03:20]} {[%emt 00:00:09]} 38.
Ke4 {[%clk 00:13:19]} {[%emt 00:00:22]} Ke6 {[%clk 00:03:47]} {[%emt 00:00:04]}
39. g4 {[%clk 00:10:50]} {[%emt 00:02:59]} b5 {[%clk 00:04:07]} {[%emt
00:00:10]} 40. Rxb4 {[%clk 00:11:10]} {[%emt 00:00:10]} axb4 {[%clk 00:04:36]}
{[%emt 00:00:01]} 41. f4 {[%clk 00:09:09]} {[%emt 00:02:30]} c4 {[%clk
00:04:48]} {[%emt 00:00:18]} 42. bxc4 {[%clk 00:07:42]} {[%emt 00:01:57]} bxc4
{[%clk 00:05:11]} {[%emt 00:00:06]} 43. g5 {[%clk 00:07:51]} {[%emt 00:00:22]}
c3 {[%clk 00:03:32]} {[%emt 00:02:10]} 44. f5+ {[%clk 00:08:15]} {[%emt
00:00:06]} Kd6 {[%clk 00:03:35]} {[%emt 00:00:27]} 45. Kd3 {[%clk 00:08:19]}
{[%emt 00:00:26]} Ke5 {[%clk 00:03:42]} {[%emt 00:00:22]} 46. g6 {[%clk
00:08:42]} {[%emt 00:00:07]} fxg6 {[%clk 00:04:05]} {[%emt 00:00:08]} 47. fxg6
{[%clk 00:09:09]} {[%emt 00:00:04]} Kf6 {[%clk 00:04:31]} {[%emt 00:00:04]} 48.
a3 {[%clk 00:09:30]} {[%emt 00:00:09]} bxa3 {[%clk 00:04:42]} {[%emt 00:00:19]}
49. Kxc3 {[%clk 00:09:55]} {[%emt 00:00:05]} Kxg6 {[%clk 00:05:04]} {[%emt
00:00:08]} 50. Kb3 {[%clk 00:10:20]} {[%emt 00:00:04]} a2 {[%clk 00:05:23]}
{[%emt 00:00:12]} 51. Kxa2 {[%clk 00:10:47]} {[%emt 00:00:04]} 1/2-1/2

[Event "Open Gent FIDE-rated 2023"]
[Site "Gent, Belgium"]
[Date "2023.07.17"]
[Round "5.4"]
[White "Bekker, Stefan"]
[Black "Van Compenolle, Kurt"]
[Result "1-0"]
[TimeControl "90'+30''"]
[WhiteTitle "FM"]
[WhiteElo "2286"]
[BlackElo "2084"]

1. Nf3 {[%clk 01:30:55]} {[%emt 00:00:04]} Nf6 {[%clk 01:22:02]} {[%emt
00:08:59]} 2. g3 {[%clk 01:31:16]} {[%emt 00:00:10]} d5 {[%clk 01:20:27]}
{[%emt 00:02:05]} 3. c4 {[%clk 01:30:47]} {[%emt 00:00:59]} e6 {[%clk
01:18:20]} {[%emt 00:02:37]} 4. Bg2 {[%clk 01:30:42]} {[%emt 00:00:34]} Be7
{[%clk 01:18:20]} {[%emt 00:00:31]} 5. O-O {[%clk 01:31:06]} {[%emt 00:00:06]}
O-O {[%clk 01:18:13]} {[%emt 00:00:37]} 6. d4 {[%clk 01:31:31]} {[%emt
00:00:05]} Nc6 {[%clk 01:18:00]} {[%emt 00:00:44]} 7. b3 {[%clk 01:27:11]}
{[%emt 00:04:49]} a5 {[%clk 01:14:01]} {[%emt 00:04:29]} 8. a3 {[%clk
01:19:05]} {[%emt 00:08:36]} Bd7 {[%clk 01:06:43]} {[%emt 00:07:47]} 9. Bb2
{[%clk 01:13:47]} {[%emt 00:05:48]} Qb8 {[%clk 01:00:45]} {[%emt 00:06:29]} 10.
Nc3 {[%clk 01:12:56]} {[%emt 00:01:21]} Rd8 {[%clk 00:54:59]} {[%emt 00:06:15]}
11. Qc2 {[%clk 01:11:40]} {[%emt 00:01:46]} a4 {[%clk 00:41:44]} {[%emt
00:13:45]} 12. Nxa4 {[%clk 00:57:16]} {[%emt 00:14:54]} dxc4 {[%clk 00:41:35]}
{[%emt 00:00:39]} 13. Nc5 {[%clk 00:57:41]} {[%emt 00:00:05]} cxb3 {[%clk
00:37:41]} {[%emt 00:04:25]} 14. Qxb3 {[%clk 00:57:04]} {[%emt 00:01:06]} Na5
{[%clk 00:38:03]} {[%emt 00:00:08]} 15. Qc2 {[%clk 00:56:56]} {[%emt 00:00:38]}
Bc6 {[%clk 00:32:19]} {[%emt 00:06:14]} 16. Rfc1 {[%clk 00:54:57]} {[%emt
00:02:29]} b6 {[%clk 00:30:15]} {[%emt 00:02:35]} 17. Nd3 {[%clk 00:54:17]}
{[%emt 00:01:09]} Bd5 {[%clk 00:18:10]} {[%emt 00:12:36]} 18. Nf4 {[%clk
00:45:58]} {[%emt 00:08:49]} Be4 {[%clk 00:17:34]} {[%emt 00:01:06]} 19. Qxc7
{[%clk 00:40:04]} {[%emt 00:06:24]} Qxc7 {[%clk 00:18:01]} {[%emt 00:00:03]} 20.
Rxc7 {[%clk 00:40:27]} {[%emt 00:00:07]} Bd6 {[%clk 00:18:17]} {[%emt
00:00:14]} 21. Rxf7 {[%clk 00:11:50]} {[%emt 00:29:07]} Bxf4 {[%clk 00:10:51]}
{[%emt 00:07:56]} 22. gxf4 {[%clk 00:06:46]} {[%emt 00:05:34]} Kxf7 {[%clk
00:07:28]} {[%emt 00:03:53]} 23. Ng5+ {[%clk 00:07:11]} {[%emt 00:00:05]} Kg8
{[%clk 00:07:52]} {[%emt 00:00:06]} 24. Nxe4 {[%clk 00:07:36]} {[%emt
00:00:05]} Nxe4 {[%clk 00:07:37]} {[%emt 00:00:45]} 25. Bxe4 {[%clk 00:08:01]}
{[%emt 00:00:05]} Rac8 {[%clk 00:04:06]} {[%emt 00:04:02]} 26. e3 {[%clk
00:08:03]} {[%emt 00:00:27]} Nc4 {[%clk 00:04:19]} {[%emt 00:00:17]} 27. Bc1
{[%clk 00:08:27]} {[%emt 00:00:06]} g6 {[%clk 00:04:34]} {[%emt 00:00:15]} 28.
Kf1 {[%clk 00:08:41]} {[%emt 00:00:16]} Nd6 {[%clk 00:04:52]} {[%emt 00:00:13]}
29. Bd3 {[%clk 00:09:00]} {[%emt 00:00:11]} Rc3 {[%clk 00:04:49]} {[%emt
00:00:33]} 30. Ke2 {[%clk 00:09:10]} {[%emt 00:00:19]} Nc4 {[%clk 00:03:44]}
{[%emt 00:01:36]} 31. a4 {[%clk 00:02:52]} {[%emt 00:06:48]} Na5 {[%clk
00:03:26]} {[%emt 00:00:47]} 32. Bd2 {[%clk 00:02:58]} {[%emt 00:00:24]} Rc7
{[%clk 00:03:14]} {[%emt 00:00:41]} 33. Rb1 {[%clk 00:03:19]} {[%emt 00:00:09]}
Rd6 {[%clk 00:02:21]} {[%emt 00:01:23]} 34. h4 {[%clk 00:02:05]} {[%emt
00:01:45]} Ra7 {[%clk 00:02:00]} {[%emt 00:00:51]} 35. Bb5 {[%clk 00:02:06]}
{[%emt 00:00:29]} Rc7 {[%clk 00:01:24]} {[%emt 00:01:05]} 36. Kd3 {[%clk
00:02:33]} {[%emt 00:00:03]} Kg7 {[%clk 00:01:20]} {[%emt 00:00:34]} 37. h5
{[%clk 00:02:09]} {[%emt 00:00:54]} gxh5 {[%clk 00:01:15]} {[%emt 00:00:35]} 38.
Rg1+ {[%clk 00:02:31]} {[%emt 00:00:07]} Kf6 {[%clk 00:01:26]} {[%emt
00:00:18]} 39. e4 {[%clk 00:02:49]} {[%emt 00:00:13]} Rd8 {[%clk 00:01:17]}
{[%emt 00:00:40]} 40. Rg5 {[%clk 00:02:30]} {[%emt 00:00:48]} Nb3 {[%clk
00:01:35]} {[%emt 00:00:12]} 41. e5+ {[%clk 00:01:53]} {[%emt 00:01:08]} Kf7
{[%clk 00:01:57]} {[%emt 00:00:07]} 42. Be3 {[%clk 00:02:19]} {[%emt 00:00:04]}
h6 {[%clk 00:01:01]} {[%emt 00:01:26]} 43. Rxh5 {[%clk 00:02:36]} {[%emt
00:00:13]} Kg6 {[%clk 00:01:27]} {[%emt 00:00:04]} 44. Rh1 {[%clk 00:02:33]}
{[%emt 00:00:33]} h5 {[%clk 00:01:28]} {[%emt 00:00:28]} 45. Rg1+ {[%clk
00:02:08]} {[%emt 00:00:54]} Kf7 {[%clk 00:01:21]} {[%emt 00:00:38]} 46. Rg5
{[%clk 00:02:22]} {[%emt 00:00:17]} Rh8 {[%clk 00:01:30]} {[%emt 00:00:21]} 47.
f5 {[%clk 00:02:32]} {[%emt 00:00:20]} Na5 {[%clk 00:00:33]} {[%emt 00:01:27]}
48. d5 {[%emt 00:01:56]} 1-0